bitfinex/quotes_ETHUSD_20260304
["timestamp","ask_amount","ask_price","bid_price","bid_amount"]
[1772638385167,4.67080622,2129.8,2128.0,0.001]
[1772638385589,4.67080622,2129.8,2128.0,4.5635589]
[1772638385900,4.67080622,2129.8,2128.1,10.18152811]
[1772638386064,4.67080622,2129.8,2128.3,0.065536]
[1772638386252,4.67080622,2129.8,2128.6,0.001]
[1772638386876,2.17393356,2129.8,2128.6,0.001]
[1772638387058,4.67080622,2129.6,2128.4,0.001]
[1772638387270,4.67080622,2130.4,2128.4,4.5635589]
[1772638387488,4.67080622,2130.2,2128.4,0.001]
[1772638387691,4.67080622,2129.4,2128.1,0.001]
[1772638387878,4.67080622,2129.0,2128.1,0.001]
[1772638388295,0.065536,2130.2,2128.1,0.001]
[1772638388296,5.68080622,2130.2,2128.1,0.001]
[1772638388486,4.67080622,2130.1,2128.1,0.001]
[1772638388687,4.67080622,2129.7,2128.1,0.001]
[1772638388992,4.67080622,2129.7,2127.4,4.7001316]
[1772638388993,4.67080622,2129.5,2127.4,4.7001316]
[1772638389295,4.67080622,2129.5,2127.2,5.9045501]
[1772638389499,5.68080622,2129.4,2127.4,4.5625589]
[1772638390465,1.009,2129.3,2127.4,4.5625589]
[1772638390665,4.67080622,2129.4,2127.5,7.18649071]
[1772638390909,1.17392937,2129.6,2127.7,4.6280949]
[1772638391074,5.70436644,2129.8,2127.9,4.6280949]
[1772638391263,5.70436644,2129.8,2128.0,7.18423735]
[1772638391464,3.58197492,2130.7,2128.0,7.18423735]
[1772638391465,4.67080622,2130.5,2128.4,4.5625589]
[1772638392196,4.67080622,2130.3,2128.3,2.52655282]
[1772638392370,4.67080622,2130.3,2127.9,4.5625589]
[1772638392773,2.17393356,2130.4,2127.8,1.17492245]
[1772638392774,4.67080622,2129.8,2127.8,1.17492245]
[1772638392981,1.1739845,2129.5,2127.6,9.26224872]
[1772638393183,5.84476913,2129.6,2127.7,7.2572558]
[1772638393366,5.84476913,2129.6,2127.7,4.6280949]
[1772638393766,5.84476913,2129.6,2127.8,2.62835011]
[1772638394081,5.84476913,2129.6,2127.7,4.6280949]
[1772638394082,5.67980622,2129.5,2127.7,4.6280949]
[1772638394287,5.67980622,2129.5,2127.7,4.5625589]
[1772638394493,5.67980622,2129.5,2127.5,4.69968982]
[1772638394802,4.67080622,2129.5,2127.7,4.5625589]
[1772638394963,1.17409477,2129.3,2127.9,1.17486724]
[1772638395575,4.67080622,2129.2,2127.9,1.17486724]
[1772638396175,4.67080622,2129.2,2127.3,4.70069818]
[1772638396804,1.008,2129.1,2127.4,2.63796137]
[1772638396987,1.17426021,2129.0,2127.3,4.70069818]
[1772638397190,1.17426021,2129.0,2127.4,2.63798999]
[1772638397374,1.17426021,2129.0,2127.3,4.70069818]
[1772638397573,1.17426021,2129.0,2127.4,2.63959139]
[1772638397574,1.008,2128.9,2127.4,2.63959139]
[1772638397775,5.67880622,2128.9,2127.3,4.70069818]
[1772638397968,5.67880622,2128.9,2127.4,2.6391257]
[1772638398187,5.67880622,2128.9,2127.3,1.1751986]
[1772638398382,4.67080622,2128.9,2127.3,1.1751986]
[1772638398581,5.06992689,2128.7,2127.3,1.1751986]
[1772638398789,5.06992689,2128.7,2127.2,0.1667926]
[1772638399102,5.06992689,2128.7,2126.3,3.7681218]
[1772638399103,5.06992689,2128.3,2126.4,1.17569601]
[1772638399490,5.06992689,2127.8,2126.4,1.17569601]
[1772638399697,5.06992689,2127.8,2125.8,2.09517359]
[1772638399698,5.06992689,2127.5,2125.6,2.09517359]
[1772638399868,5.06992689,2127.5,2125.7,4.23331787]
[1772638400075,5.06992689,2127.2,2125.7,1.17608317]
[1772638400291,5.06992689,2127.8,2125.7,1.17608317]
[1772638400480,1.007,2128.2,2126.0,4.84353282]
[1772638400682,5.06992689,2128.3,2126.5,4.84353282]
[1772638400993,6.24462851,2128.2,2126.7,1.17553016]
[1772638401392,7.25162851,2128.2,2126.7,1.17553016]
[1772638401574,7.25162851,2128.2,2126.8,2.63802949]
[1772638401774,7.25162851,2128.2,2126.7,1.17553016]
[1772638401775,5.06992689,2128.1,2126.7,1.17553016]
[1772638402172,6.24446294,2128.5,2126.8,0.41311449]
[1772638402372,6.07692689,2128.2,2126.9,2.64322467]
[1772638402674,6.07692689,2128.2,2126.7,1.17553016]
[1772638402891,5.06992689,2128.0,2126.6,1.17554591]
[1772638403107,4.98204699,2127.3,2126.1,4.7032447]
[1772638403305,5.98904699,2127.2,2125.3,4.70477534]
[1772638403672,5.98904699,2127.2,2126.3,0.001]
[1772638404077,1.17486724,2127.9,2126.3,0.001]
[1772638404078,5.98904699,2127.7,2126.3,0.001]
[1772638404470,4.98204699,2127.5,2126.3,0.001]
[1772638405107,1.17514336,2127.4,2126.3,0.001]
[1772638406009,4.98204699,2127.3,2126.3,0.001]
[1772638406312,5.98804699,2127.2,2126.0,0.001]
[1772638406520,4.98204699,2126.8,2126.0,0.001]
[1772638406674,4.98204699,2126.8,2124.6,4.7065468]
[1772638406876,4.98204699,2126.8,2124.7,3.6840056]
[1772638407104,4.98204699,2126.6,2124.8,1.17658132]
[1772638407307,1.17553016,2126.7,2124.4,4.81913063]
[1772638407308,4.98204699,2126.4,2124.4,4.81913063]
[1772638407507,4.98204699,2126.4,2124.5,1.17674746]
[1772638407771,4.98204699,2126.4,2124.6,1.038]
[1772638408292,1.006,2126.5,2124.7,8.49261302]
[1772638408608,1.17553016,2126.7,2124.9,4.88466663]
[1772638408774,6.15724559,2127.4,2125.3,4.81913063]
[1772638409112,6.15724559,2127.4,2125.4,2.21424917]
[1772638409278,6.15724559,2127.4,2125.5,4.81913063]
[1772638409481,6.15724559,2127.4,2125.7,4.81913063]
[1772638409914,6.15724559,2127.4,2125.7,5.85713063]
[1772638410214,1.1751986,2127.4,2125.7,5.85713063]
[1772638410531,6.15724559,2127.4,2125.7,4.81913063]
[1772638410812,4.98204699,2127.2,2125.4,1.17624917]
[1772638411017,4.98204699,2127.2,2125.4,7.0323798]
[1772638411186,1.17522665,2127.3,2125.6,5.99526913]
[1772638411377,1.17522665,2127.3,2125.7,1.037]
[1772638411778,1.17522665,2127.3,2125.6,5.99526913]
[1772638412071,1.17522665,2127.3,2125.7,1.037]
[1772638412308,6.15727364,2127.3,2125.7,1.037]
[1772638412602,6.15727364,2127.3,2125.4,0.065536]
[1772638412901,4.98204699,2126.8,2125.2,1.17630452]
[1772638413071,1.006,2126.7,2125.2,1.17630452]
[1772638413274,1.17558544,2126.6,2125.0,9.52457011]
[1772638413475,6.15763243,2126.6,2125.0,4.81913063]
[1772638413690,6.15763243,2126.6,2125.0,5.85513063]
[1772638413875,6.15763243,2126.6,2124.9,4.70543948]
[1772638414301,6.15763243,2126.6,2125.0,1.036]
[1772638414679,1.17558544,2126.6,2125.0,5.85513063]
[1772638415094,1.17556917,2126.7,2125.2,4.81913063]
[1772638415312,4.70166799,2127.0,2125.3,1.17630452]
[1772638416010,1.17497767,2127.7,2125.7,4.81913063]
[1772638416220,1.17497767,2127.7,2125.8,8.48860123]
[1772638416511,4.98204699,2127.5,2125.6,1.036]
[1772638416711,4.98204699,2127.5,2125.4,0.065536]
[1772638417010,4.98204699,2127.5,2125.5,8.4915903]
[1772638417224,1.17514336,2127.4,2125.7,1.17608317]
[1772638417607,1.17514336,2127.4,2125.8,1.035]
[1772638417810,1.17514336,2127.4,2125.7,1.17608317]
[1772638418118,1.17514336,2127.4,2125.8,6.32263063]
[1772638418305,4.98204699,2127.2,2125.7,1.17608317]
[1772638418506,4.98204699,2127.2,2125.1,5.74038412]
[1772638418712,4.98204699,2127.2,2125.1,4.70538412]
[1772638419302,4.98204699,2127.0,2125.2,0.001]
[1772638419509,4.98204699,2127.0,2125.3,2.63881728]
[1772638419727,4.98204699,2127.0,2125.2,4.82013063]
[1772638420135,4.98204699,2127.0,2125.2,5.85513063]
[1772638420532,4.98204699,2127.0,2125.3,1.035]
[1772638420716,4.98204699,2127.0,2125.4,1.035]
[1772638420915,4.98204699,2127.0,2125.2,4.82013063]
[1772638421110,4.98204699,2127.0,2125.3,4.08420139]
[1772638421305,1.17541962,2126.9,2125.5,1.17619383]
[1772638421508,4.98204699,2126.8,2125.2,0.001]
[1772638421827,4.98204699,2126.8,2125.2,1.17733673]
[1772638422214,4.98204699,2126.8,2125.3,2.64343043]
[1772638422410,4.98204699,2126.8,2125.2,5.99646736]
[1772638422633,4.98204699,2126.8,2125.3,2.64394936]
[1772638422839,4.98204699,2126.8,2125.2,5.99646736]
[1772638423052,4.98204699,2126.8,2125.4,1.034]
[1772638423409,6.15757715,2126.7,2125.4,1.034]
[1772638423764,6.15757715,2126.7,2125.2,2.21133673]
[1772638424240,6.15757715,2126.7,2125.3,2.64585033]
[1772638424241,4.98204699,2126.5,2125.3,2.64585033]
[1772638424540,1.17553016,2126.7,2125.2,1.17733673]
[1772638424758,1.17541962,2126.9,2125.3,7.87750915]
[1772638424914,1.17535486,2127.1,2125.6,2.09517359]
[1772638425124,1.17535486,2127.1,2125.7,4.09237852]
[1772638425446,0.002,2127.2,2125.9,1.17597252]
[1772638425745,0.002,2127.2,2126.0,3.679102]
[1772638425948,0.002,2127.2,2126.0,1.034]
[1772638426250,4.98404699,2127.2,2126.1,2.64834208]
[1772638426547,4.98404699,2127.2,2126.1,1.033]
[1772638427053,4.98404699,2127.2,2125.5,4.30431209]
[1772638427255,4.98204699,2127.1,2125.6,4.24541916]
[1772638427426,4.98204699,2127.1,2125.8,1.17602784]
[1772638427427,6.15741135,2127.0,2125.8,1.17602784]
[1772638427748,4.98204699,2126.9,2125.6,1.1761385]
[1772638428116,4.98204699,2126.9,2125.3,2.09517359]
[1772638428318,4.98204699,2126.9,2125.3,1.17629208]
[1772638428522,4.85448581,2126.7,2125.2,0.001]
[1772638428782,4.85448581,2126.7,2125.2,1.17735565]
[1772638429052,4.85448581,2126.7,2125.2,0.001]
[1772638429533,4.85448581,2126.5,2125.2,0.001]
[1772638429737,4.85448581,2126.3,2125.2,0.001]
[1772638430142,4.85448581,2126.3,2125.0,0.001]
[1772638431469,4.85448581,2126.1,2125.0,0.001]
[1772638431969,1.17571848,2126.4,2125.1,2.6589606]
[1772638432265,4.85448581,2126.6,2125.2,6.20153473]
[1772638432431,4.85448581,2126.6,2125.0,3.14161636]
[1772638432432,6.03008661,2126.6,2125.3,5.16953473]
[1772638432650,6.03008661,2126.6,2125.4,4.10636114]
[1772638432947,6.03008661,2126.6,2125.5,3.07436114]
[1772638433172,6.0300897,2126.6,2125.6,3.07436114]
[1772638433374,1.17535651,2127.1,2125.8,2.09517359]
[1772638433573,4.70315136,2127.2,2126.0,1.17591721]
[1772638433789,4.70315136,2127.2,2126.1,2.6589606]
[1772638434087,4.85448581,2127.1,2125.9,1.17597247]
[1772638434257,4.85448581,2127.1,2126.0,2.66206321]
[1772638434459,4.85448581,2127.1,2125.9,1.17597247]
[1772638434972,4.85448581,2127.1,2126.0,2.66239862]
[1772638435142,4.85448581,2127.1,2125.9,1.17597247]
[1772638435344,4.85448581,2127.1,2126.0,2.66216213]
[1772638435548,1.17536436,2127.0,2125.8,5.73489011]
[1772638435779,6.02985017,2127.0,2125.9,2.66375832]
[1772638436078,0.002,2126.4,2125.8,1.17602784]
[1772638436275,0.002,2126.4,2125.9,2.6667868]
[1772638436453,0.002,2126.4,2125.8,1.17602784]
[1772638436648,0.002,2126.4,2125.9,2.66692182]
[1772638436952,0.002,2126.6,2126.0,2.66692182]
[1772638437164,0.002,2126.6,2126.1,2.667832]
[1772638437482,0.002,2126.6,2125.9,1.031]
[1772638437777,0.002,2126.6,2126.0,3.84390658]
[1772638437982,0.002,2126.6,2126.0,1.17591721]
[1772638438282,4.70302165,2127.2,2125.9,4.70366886]
[1772638438283,1.23918975,2128.1,2126.6,4.79108969]
[1772638438483,1.23918975,2128.1,2126.8,6.92092708]
[1772638438484,1.17478975,2128.1,2126.8,6.92092708]
[1772638438660,4.69897078,2128.2,2126.7,4.11415246]
[1772638438661,1.17474486,2128.2,2126.9,5.21298985]
[1772638438863,0.002,2128.5,2127.1,4.79108969]
[1772638439187,0.002,2128.5,2127.2,3.08315246]
[1772638439188,1.17459124,2128.4,2127.2,3.08315246]
[1772638439388,1.17459124,2128.4,2127.1,4.79108969]
[1772638439583,0.002,2128.5,2127.2,1.17525385]
[1772638439882,0.002,2128.5,2127.2,3.83408983]
[1772638440104,0.002,2128.5,2127.3,2.65883598]
[1772638440287,0.002,2128.5,2127.2,1.17525385]
[1772638440659,4.85648581,2128.5,2127.2,1.17525385]
[1772638441387,4.85448581,2128.0,2126.5,1.17564072]
[1772638441562,1.17492245,2127.8,2126.3,4.7028706]
[1772638441757,6.02940826,2127.8,2125.9,2.12983739]
[1772638442011,6.02940826,2127.8,2126.0,8.39570921]
[1772638442157,6.02940826,2127.8,2126.1,3.07651707]
[1772638442367,1.17492245,2127.8,2126.2,7.86742692]
[1772638442666,1.17492245,2127.8,2126.3,8.89835191]
[1772638442857,1.17492245,2127.8,2126.4,2.66115431]
[1772638443057,1.17492245,2127.8,2126.5,3.69215431]
[1772638443253,1.17492245,2127.8,2126.5,1.031]
[1772638443471,1.17492245,2127.8,2126.7,0.7]
[1772638443675,1.17492245,2127.8,2126.8,1.17547489]
[1772638443875,1.17492245,2127.8,2126.7,1.87548981]
[1772638444084,1.17492245,2127.8,2126.7,2.90648981]
[1772638444284,1.17492245,2127.8,2126.7,1.87548981]
[1772638444495,1.17492245,2127.8,2126.7,0.7]
[1772638444857,10.55817563,2127.9,2126.7,1.87550697]
[1772638444858,1.1748716,2127.9,2126.7,1.87550697]
[1772638445285,1.1748716,2127.9,2126.7,1.87552784]
[1772638445684,0.002,2128.5,2127.0,4.79108969]
[1772638445966,1.17376402,2129.9,2128.0,4.79108969]
[1772638446198,1.17376402,2129.9,2128.3,4.79108969]
[1772638446362,1.17376402,2129.9,2128.4,1.031]
[1772638446660,4.85448581,2129.8,2128.0,1.031]
[1772638446863,4.85448581,2129.8,2128.0,5.82208969]
[1772638447179,1.17376402,2129.9,2127.6,4.79599118]
[1772638447180,1.17376402,2129.9,2128.1,5.82208969]
[1772638447572,1.17376402,2129.9,2128.2,1.031]
[1772638447782,4.6950561,2130.0,2128.3,5.96573612]
[1772638448394,9.54954191,2130.0,2128.3,1.17464643]
[1772638448559,4.6950561,2130.0,2128.3,5.96573612]
[1772638448763,4.6950561,2130.0,2128.4,1.031]
[1772638448991,4.6950561,2130.0,2128.5,5.82208969]
[1772638449360,4.85448581,2129.9,2128.0,1.17481203]
[1772638449565,4.85448581,2129.9,2128.0,5.96590172]
[1772638449794,1.17381913,2129.8,2128.1,1.03]
[1772638449995,4.85448581,2129.6,2128.0,1.17481203]
[1772638450167,4.85448581,2129.6,2127.8,4.6995554]
[1772638450364,4.85448581,2129.6,2127.5,4.79108969]
[1772638450365,4.85448581,2129.2,2127.5,5.96615186]
[1772638450568,5.85748581,2129.1,2127.5,1.17506217]
[1772638450996,5.85748581,2129.1,2127.2,1.03]
[1772638451593,1.003,2129.1,2127.2,4.79108969]
[1772638451775,1.17426021,2129.0,2127.5,5.96617782]
[1772638452090,1.17426021,2129.0,2127.6,5.82108969]
[1772638452495,1.17426021,2129.0,2127.7,1.03]
[1772638453066,1.17426021,2129.0,2127.6,4.79108969]
[1772638453406,4.69704086,2129.2,2127.5,1.17508813]
[1772638453566,1.40874732,2129.6,2127.5,1.17508813]
[1772638453567,1.17591119,2129.7,2127.9,4.79108969]
[1772638453764,0.002,2129.7,2128.2,4.79108969]
[1772638453982,0.002,2129.7,2128.3,5.82008969]
[1772638454196,4.85648581,2129.7,2128.0,1.17481203]
[1772638454400,0.002,2129.7,2128.0,5.96590172]
[1772638454785,0.002,2129.7,2128.2,4.79108969]
[1772638454987,0.002,2129.7,2128.4,4.79108969]
[1772638455197,0.002,2129.7,2128.5,4.79108969]
[1772638455396,0.002,2129.7,2128.6,5.82008969]
[1772638455610,0.002,2129.7,2128.7,1.029]
[1772638455991,0.002,2129.7,2128.8,1.17437053]
[1772638456194,0.002,2129.7,2128.8,2.20337053]
[1772638457333,0.002,2129.7,2128.8,1.17437053]
[1772638457617,0.002,2129.7,2128.2,2.20370162]
[1772638457904,0.002,2129.7,2128.3,4.79108969]
[1772638458118,0.002,2129.7,2128.5,4.79108969]
[1772638458676,0.002,2130.2,2128.9,4.99760092]
[1772638458912,0.002,2130.2,2129.1,4.99760092]
[1772638459097,0.002,2130.2,2129.1,6.02560092]
[1772638460014,4.69285278,2131.1,2129.4,1.17403963]
[1772638460214,4.69285278,2131.2,2129.4,1.17403963]
[1772638460511,4.70460163,2131.1,2128.8,5.06313692]
[1772638460713,4.70460163,2131.1,2128.9,2.20231537]
[1772638460909,4.70460163,2131.1,2129.0,4.99760092]
[1772638461328,4.69285278,2131.2,2129.2,4.99760092]
[1772638461500,4.69285278,2131.2,2129.1,1.093536]
[1772638461501,4.69285278,2131.2,2129.3,6.02560092]
[1772638462185,9.39879382,2131.4,2129.4,6.17164055]
[1772638462385,9.39879382,2131.4,2129.4,7.19964055]
[1772638462839,9.39879382,2131.4,2129.5,6.02560092]
[1772638463126,0.002,2131.4,2129.7,4.99760092]
[1772638463294,0.002,2131.4,2130.1,4.99760092]
[1772638463497,1.17484246,2131.6,2130.3,4.99760092]
[1772638464023,1.17484246,2131.6,2130.2,5.0]
[1772638464322,0.002,2131.6,2130.3,1.17354363]
[1772638464489,0.002,2131.6,2130.3,2.20054363]
[1772638464688,0.002,2131.6,2130.2,6.17355642]
[1772638464920,4.972376,2131.6,2130.2,5.0]
[1772638465100,5.968376,2131.5,2130.2,5.0]
[1772638465505,5.968376,2131.5,2128.1,4.83193387]
[1772638465506,4.7566391,2130.8,2128.1,4.83193387]
[1772638465710,0.998,2130.7,2128.6,4.83193387]
[1772638466008,0.998,2130.7,2128.5,1.4094261]
[1772638466009,4.7566391,2131.5,2129.0,4.83193387]
[1772638466207,1.17326825,2130.8,2129.4,4.83193387]
[1772638467111,6.06943063,2130.8,2129.0,1.16945022]
[1772638467326,6.06943063,2130.8,2129.0,6.00138409]
[1772638467327,1.17326825,2130.8,2129.0,6.00138409]
[1772638467694,1.17324792,2130.9,2129.6,4.83193387]
[1772638467892,4.69229618,2131.2,2129.6,5.85893387]
[1772638468297,4.69229618,2131.2,2129.7,1.17387425]
[1772638468519,4.69429618,2131.2,2129.7,1.17387425]
[1772638468923,0.002,2131.2,2129.7,6.00580812]
[1772638469123,0.002,2131.2,2129.8,5.85893387]
[1772638469335,0.002,2131.2,2129.9,1.027]
[1772638469695,0.002,2131.2,2129.8,4.83193387]
[1772638469895,0.002,2131.2,2129.8,5.85893387]
[1772638470329,0.002,2131.2,2129.9,6.00569789]
[1772638470531,4.87068921,2131.2,2129.4,1.17403963]
[1772638470700,4.86868921,2131.1,2129.4,1.17403963]
[1772638471205,4.86868921,2130.9,2129.4,1.17403963]
[1772638472308,4.86868921,2130.9,2129.3,4.69735471]
[1772638472309,4.85468503,2130.7,2129.3,0.001]
[1772638472803,4.85468503,2130.7,2129.5,0.5]
[1772638473527,4.85468503,2130.7,2129.3,0.001]
[1772638473906,0.995,2130.6,2129.3,0.001]
[1772638474320,1.17343346,2130.5,2129.3,0.001]
[1772638474832,7.00891496,2130.5,2129.3,0.001]
[1772638476337,1.17354363,2130.3,2129.3,0.001]
[1772638476704,0.995,2130.3,2129.3,0.001]
[1772638476909,5.82114181,2130.3,2129.3,0.001]
[1772638477331,4.82614181,2130.3,2129.3,0.001]
[1772638477537,0.995,2130.3,2129.3,0.001]
[1772638478148,0.995,2130.3,2129.5,0.5]
[1772638478641,0.995,2130.3,2129.6,1.17392937]
[1772638478858,0.995,2130.3,2129.5,1.67394216]
[1772638479153,4.81892068,2130.9,2129.5,1.67394216]
[1772638479154,0.995,2130.9,2129.6,4.83193387]
[1772638479537,5.79935386,2130.9,2129.5,0.5]
[1772638479858,5.79935386,2130.9,2129.5,1.6739804]
[1772638480032,0.995,2130.9,2129.5,6.50591427]
[1772638480231,0.995,2130.9,2129.6,4.83193387]
[1772638480641,1.17326825,2130.8,2129.5,1.67397503]
[1772638480936,1.17326825,2130.8,2129.3,0.001]
[1772638480937,4.79424071,2130.4,2129.3,1.17508483]
[1772638481140,0.994,2130.7,2129.3,6.00702511]
[1772638481452,1.17326825,2130.8,2129.3,6.00702511]
[1772638481453,1.17326825,2130.8,2129.5,4.83193387]
[1772638481632,1.17326825,2130.8,2129.5,5.85593387]
[1772638481958,1.17326825,2130.8,2129.5,4.83193387]
[1772638482524,4.69307302,2130.9,2129.6,1.17392937]
[1772638483048,4.69307302,2130.9,2129.5,4.35813597]
[1772638483254,5.964376,2130.8,2129.3,0.001]
[1772638483546,4.972376,2130.6,2129.3,0.001]
[1772638484551,0.994,2130.5,2129.3,0.001]
[1772638484852,1.17348854,2130.4,2129.3,0.001]
[1772638486143,1.17346536,2130.5,2129.4,3.06458312]
[1772638486340,1.17346536,2130.5,2129.5,2.65032123]
[1772638486550,1.17346536,2130.5,2129.3,0.001]
[1772638486722,1.17346536,2130.5,2129.4,3.06536954]
[1772638486930,1.17346536,2130.5,2129.5,2.65100694]
[1772638487125,1.17346536,2130.5,2129.3,0.001]
[1772638487327,1.17346536,2130.5,2129.4,3.06378184]
[1772638487524,1.17346536,2130.5,2129.5,3.06378184]
[1772638487726,1.17346536,2130.5,2129.3,4.83293387]
[1772638487927,1.17346536,2130.5,2129.5,4.83193387]
[1772638488141,1.17346536,2130.5,2129.6,2.65030685]
[1772638488336,4.69553002,2130.6,2129.7,0.41447742]
[1772638488337,0.002,2130.6,2129.7,0.41447742]
[1772638488553,0.002,2130.6,2129.8,3.06478427]
[1772638488554,1.17537916,2130.6,2129.8,3.06478427]
[1772638488755,0.002,2130.6,2129.9,1.17376402]
[1772638489060,1.17526825,2130.8,2130.0,5.49933805]
[1772638489061,0.002,2130.8,2130.0,5.49933805]
[1772638489228,0.002,2130.8,2130.1,2.65036447]
[1772638489431,0.002,2130.8,2129.7,3.30365889]
[1772638489629,0.002,2130.8,2129.8,3.06361861]
[1772638489853,0.002,2130.8,2129.9,2.64950652]
[1772638490164,0.002,2130.8,2129.6,6.25903192]
[1772638490358,0.002,2130.8,2129.7,8.15033791]
[1772638490543,0.002,2130.8,2129.8,3.06520837]
[1772638490728,0.002,2130.8,2130.0,1.17370892]
[1772638491637,0.002,2130.8,2130.1,3.06291757]
[1772638491844,0.002,2130.8,2129.8,1.17377783]
[1772638492161,0.002,2130.8,2129.9,3.06516497]
[1772638492329,0.002,2130.8,2129.7,5.08512954]
[1772638492524,0.002,2130.8,2129.8,2.65201277]
[1772638492729,0.002,2130.8,2129.6,2.19492743]
[1772638492934,0.993,2130.7,2129.6,2.19490976]
[1772638493167,0.993,2130.7,2129.7,3.06718979]
[1772638493364,0.002,2130.8,2129.8,2.65338474]
[1772638493565,0.002,2130.8,2129.9,8.15297514]
[1772638493868,0.002,2130.8,2130.0,3.0678456]
[1772638494028,0.002,2130.8,2130.1,3.0678456]
[1772638494234,0.002,2130.8,2130.2,3.06814918]
[1772638494471,0.002,2130.8,2129.9,5.08512954]
[1772638494637,0.002,2130.8,2130.0,3.07034945]
[1772638494965,0.002,2130.8,2130.1,2.6553841]
[1772638495272,0.002,2130.8,2129.5,1.17398356]
[1772638495273,0.993,2130.7,2129.5,1.17398356]
[1772638495579,0.993,2130.7,2129.6,3.0738216]
[1772638495872,0.993,2130.7,2129.7,2.65839806]
[1772638496070,0.993,2130.7,2129.3,0.001]
[1772638496071,2.42990251,2130.6,2129.3,0.001]
[1772638496277,2.4155665,2130.2,2129.3,0.001]
[1772638496570,0.993,2130.7,2129.0,0.001]
[1772638496571,2.4155665,2129.8,2129.0,0.001]
[1772638496879,1.17392937,2129.6,2129.0,0.001]
[1772638498836,1.17403963,2129.4,2129.0,0.001]
[1772638499474,1.17403963,2129.4,2128.7,0.001]
[1772638499842,1.17403963,2129.4,2127.9,2.70292436]
[1772638500076,2.44761907,2129.3,2127.4,2.12983739]
[1772638500285,1.17403963,2129.4,2127.2,8.27988563]
[1772638500286,2.43331959,2129.0,2127.2,6.26035471]
[1772638500496,1.17403963,2129.4,2127.4,5.08512954]
[1772638500776,1.17403963,2129.4,2127.1,7.8957715]
[1772638500777,2.43331959,2128.8,2127.1,2.12983739]
[1772638500991,4.61551065,2128.6,2126.9,6.26054339]
[1772638501143,2.41669077,2128.5,2126.9,5.08512954]
[1772638501342,2.41669077,2128.5,2126.7,1.17553016]
[1772638501586,2.41669077,2128.1,2126.6,1.077741]
[1772638501747,2.41669077,2127.7,2126.0,1.17591721]
[1772638501948,0.993,2127.6,2126.0,1.17591721]
[1772638502705,0.993,2127.5,2126.0,6.26104675]
[1772638502982,1.1751986,2127.3,2125.8,5.0]
[1772638503166,1.1751986,2127.3,2125.8,6.1759987]
[1772638503751,0.993,2127.2,2125.8,6.1759987]
[1772638503998,2.38836228,2127.1,2125.8,5.0]
[1772638504695,2.37427031,2126.8,2125.8,5.0]
[1772638504903,1.17553016,2126.7,2125.8,5.0]
[1772638505220,1.17553016,2126.7,2125.8,2.62482311]
[1772638505357,0.993,2126.6,2125.8,2.62482311]
[1772638505863,0.993,2126.5,2125.8,2.62482311]
[1772638506462,0.993,2126.4,2125.8,2.56482311]
[1772638506666,0.04053235,2127.2,2125.8,2.56482311]
[1772638506861,4.70189956,2127.0,2125.8,2.56482311]
[1772638507164,0.993,2126.9,2125.8,2.56482311]
[1772638507367,4.70189956,2127.0,2125.8,2.56482311]
[1772638507368,4.73185978,2127.0,2125.8,2.56482311]
[1772638507691,2.21215128,2126.4,2125.8,2.56482311]
[1772638507857,2.21215128,2126.4,2125.8,1.56016127]
[1772638508188,0.993,2126.9,2125.8,1e-08]
[1772638508189,0.993,2126.3,2125.8,1e-08]
[1772638508507,0.994,2126.2,2125.8,1e-08]
[1772638508790,0.993,2126.1,2125.8,1e-08]
[1772638509561,0.994,2126.0,2125.8,1e-08]
[1772638509859,0.994,2125.9,2125.8,1e-08]
[1772638510173,1.17558544,2126.6,2125.8,1e-08]
[1772638510362,0.994,2126.1,2125.8,1e-08]
[1772638510695,1.17558544,2126.6,2125.8,1e-08]
[1772638511005,1.17541962,2126.9,2125.8,1e-08]
[1772638511155,1.17541962,2126.9,2125.8,5.08512955]
[1772638511156,0.994,2126.8,2125.8,5.08512955]
[1772638511358,4.76837912,2127.5,2125.8,5.08512955]
[1772638511359,0.994,2127.2,2125.8,5.08512955]
[1772638511788,4.75590847,2127.6,2125.8,5.08512955]
[1772638511958,0.994,2127.3,2125.8,5.08512955]
[1772638512606,1.03694147,2127.3,2125.8,1e-08]
[1772638512756,0.04294147,2127.2,2125.8,1e-08]
[1772638513085,0.994,2127.1,2125.8,1e-08]
[1772638513655,4.70123642,2127.3,2125.8,1e-08]
[1772638513987,0.993,2127.2,2125.8,1e-08]
[1772638514482,0.993,2127.3,2126.1,5.08512954]
[1772638514790,1.42827213,2128.2,2126.0,0.001]
[1772638514791,0.993,2127.8,2126.3,5.08512954]
[1772638514965,0.993,2127.8,2126.5,5.08512954]
[1772638514966,1.17497767,2127.7,2126.5,5.08512954]
[1772638515492,0.993,2128.1,2126.5,5.08512954]
[1772638515691,1.17459124,2128.4,2126.5,5.08512954]
[1772638515864,2.16759124,2128.4,2126.5,5.08512954]
[1772638516186,0.002,2128.5,2126.5,5.08512954]
[1772638516498,4.69984957,2128.7,2126.5,5.08512954]
[1772638516499,0.002,2128.7,2127.0,5.08512954]
[1772638516655,1.17645671,2128.7,2127.2,5.08512954]
[1772638516987,0.002,2128.7,2127.4,5.08512954]
[1772638519083,0.002,2128.7,2127.6,5.02608405]
[1772638519991,0.002,2129.0,2127.7,6.04208405]
[1772638520297,0.002,2129.0,2127.7,5.02608405]
[1772638520587,0.002,2129.0,2127.9,5.02608405]
[1772638520963,0.002,2129.0,2128.1,5.02608405]
[1772638522390,0.002,2129.0,2127.9,1.1748659]
[1772638522699,0.002,2129.0,2127.7,1.17497767]
[1772638523568,0.002,2129.0,2127.7,6.20106172]
[1772638524903,0.002,2129.0,2127.8,5.02608405]
[1772638525099,0.002,2129.0,2127.9,1.17486724]
[1772638525607,0.002,2129.0,2127.8,5.02608405]
[1772638525897,0.002,2129.0,2127.8,6.20100649]
[1772638526274,0.002,2129.0,2127.8,5.02608405]
[1772638526592,0.002,2129.0,2127.8,6.20099655]
[1772638527213,0.002,2129.0,2127.9,1.014]
[1772638527417,0.002,2129.0,2128.0,5.02608405]
[1772638529171,0.002,2129.0,2128.0,6.20085697]
[1772638529569,0.002,2129.0,2127.2,4.70099297]
[1772638529570,0.002,2129.0,2127.6,5.02608405]
[1772638529773,0.002,2129.0,2127.8,5.02608405]
[1772638531318,0.002,2129.0,2128.1,6.20084087]
[1772638531519,0.002,2128.8,2128.1,5.02608405]